fUSD/lending_fUSD_20240714
["ID","MTS","AMOUNT","RATE_DAILY","PERIOD"]
[331998275,1720929084925,-500.0,0.00013753,2]
[331998276,1720929084936,-500.0,0.00013753,2]
[331998277,1720929084948,-500.0,0.00013753,2]
[331998278,1720929084957,-500.0,0.00013753,2]
[331998279,1720929084967,-500.0,0.00013753,2]
[331998280,1720929084979,-464.39669059,0.00013753,2]
[331998281,1720929084989,-500.0,0.00013753,2]
[331998282,1720929084998,-683.864752,0.00013753,2]
[331998283,1720929085011,-683.864752,0.00013753,2]
[331998284,1720929085020,-500.0,0.00013753,2]
[331998285,1720929085029,-500.0,0.00013753,2]
[331998286,1720929085038,-500.0,0.00013753,2]
[331998287,1720929085047,-500.0,0.00013753,2]
[331998288,1720929085056,-1065.03,0.00013753,2]
[331998289,1720929085066,-500.0,0.00013753,2]
[331998290,1720929085075,-500.0,0.00013753,2]
[331998291,1720929085085,-683.864752,0.00013753,2]
[331998292,1720929085094,-683.864752,0.00013753,2]
[331998293,1720929085103,-500.0,0.00013753,2]
[331998294,1720929085112,-500.0,0.00013753,2]
[331998295,1720929085121,-500.0,0.00013753,2]
[331998296,1720929085130,-500.0,0.00013753,2]
[331998297,1720929085139,-500.0,0.00013753,2]
[331998298,1720929085149,-500.0,0.00013753,2]
[331998299,1720929085157,-500.0,0.00013753,2]
[331998300,1720929085167,-500.0,0.00013753,2]
[331998301,1720929085176,-500.0,0.00013753,2]
[331998302,1720929085185,-500.0,0.00013753,2]
[331998303,1720929085194,-500.0,0.00013753,2]
[331998304,1720929085203,-500.0,0.00013753,2]
[331998305,1720929085213,-500.0,0.00013753,2]
[331998306,1720929085222,-185.915744,0.00013753,2]
[331998307,1720929085231,-185.915744,0.00013753,2]
[331998308,1720929085241,-500.0,0.00013753,2]
[331998309,1720929085250,-500.0,0.00013753,2]
[331998310,1720929085259,-500.0,0.00013753,2]
[331998311,1720929085268,-500.0,0.00013753,2]
[331998312,1720929085277,-500.0,0.00013753,2]
[331998313,1720929085287,-185.915744,0.00013753,2]
[331998314,1720929085296,-185.915744,0.00013753,2]
[331998315,1720929085465,-500.0,0.00013753,2]
[331998316,1720929085476,-280.26866399,0.00013753,2]
[331998317,1720929085488,-500.0,0.00013753,2]
[331998318,1720929085498,-500.30841599,0.00013753,2]
[331998319,1720929085507,-587.12,0.00013753,2]
[331998320,1720929085516,-500.0,0.00013753,2]
[331998321,1720929085525,-500.0,0.00013753,2]
[331998322,1720929085535,-718.15,0.00013753,2]
[331998323,1720929085543,-500.0,0.00013753,2]
[331998324,1720929085553,-500.0,0.00013753,2]
[331998325,1720929085562,-500.0,0.00013753,2]
[331998326,1720929085571,-500.0,0.00013753,2]
[331998327,1720929085580,-500.0,0.00013753,2]
[331998328,1720929085590,-500.0,0.00013753,2]
[331998329,1720929085600,-56471.55152512,0.00013753,2]
[331998330,1720929085612,-500.0,0.00013753,2]
[331998331,1720929085622,-500.0,0.00013753,2]
[331998332,1720929085632,-500.0,0.00013753,2]
[331998333,1720929085642,-500.0,0.00013753,2]
[331998334,1720929085653,-500.0,0.00013753,2]
[331998335,1720929085663,-844.22,0.00013753,2]
[331998336,1720929085672,-500.0,0.00013753,2]
[331998337,1720929085681,-500.0,0.00013753,2]
[331998338,1720929085691,-500.0,0.00013753,2]
[331998339,1720929085702,-430.60220381,0.00013753,2]
[331998340,1720929085711,-500.0,0.00013753,2]
[331998341,1720929085721,-500.0,0.00013753,2]
[331998342,1720929085731,-500.0,0.00013753,2]
[331998343,1720929085741,-500.0,0.00013753,2]
[331998344,1720929085750,-500.0,0.00013753,2]
[331998345,1720929085759,-500.0,0.00013753,2]
[331998346,1720929085767,-500.0,0.00013753,2]
[331998347,1720929085775,-500.0,0.00013753,2]
[331998348,1720929085783,-500.0,0.00013753,2]
[331998349,1720929085792,-1277.89,0.00013753,2]
[331998350,1720929085801,-500.0,0.00013753,2]
[331998351,1720929085810,-500.0,0.00013753,2]
[331998352,1720929085818,-500.0,0.00013753,2]
[331998353,1720929085827,-151.0,0.00013753,2]
[331998354,1720929085836,-500.0,0.00013753,2]
[331998355,1720929085846,-151.0,0.00013753,2]
[331998356,1720929085855,-500.0,0.00013753,2]
[331998357,1720929085865,-500.0,0.00013753,2]
[331998358,1720929085879,-500.0,0.00013753,2]
[331998359,1720929085888,-500.0,0.00013753,2]
[331998360,1720929085897,-500.0,0.00013753,2]
[331998361,1720929085909,-552.33177927,0.00013753,2]
[331998362,1720929085919,-500.0,0.00013753,2]
[331998363,1720929085930,-500.0,0.00013753,2]
[331998364,1720929085941,-500.0,0.00013753,2]
[331998365,1720929085951,-500.0,0.00013753,2]
[331998366,1720929085963,-500.0,0.00013753,2]
[331998367,1720929085972,-500.0,0.00013753,2]
[331998368,1720929085982,-500.0,0.00013753,2]
[331998369,1720929085991,-500.0,0.00013753,2]
[331998370,1720929086000,-500.0,0.00013753,2]
[331998371,1720929086009,-500.0,0.00013753,2]
[331998372,1720929086018,-500.0,0.00013753,2]
[331998373,1720929086028,-3093.96,0.00013753,2]
[331998374,1720929086037,-500.0,0.00013753,2]
[331998375,1720929086046,-500.0,0.00013753,2]
[331998376,1720929086056,-500.0,0.00013753,2]
[331998377,1720929086066,-500.0,0.00013753,2]
[331998378,1720929086076,-500.0,0.00013753,2]
[331998379,1720929086085,-500.0,0.00013753,2]
[331998380,1720929086094,-500.0,0.00013753,2]
[331998381,1720929086103,-500.0,0.00013753,2]
[331998382,1720929086112,-500.0,0.00013753,2]
[331998383,1720929086121,-500.0,0.00013753,2]
[331998384,1720929086131,-500.0,0.00013753,2]
[331998385,1720929086140,-500.0,0.00013753,2]
[331998386,1720929086149,-151.0,0.00013753,2]
[331998387,1720929086158,-500.0,0.00013753,2]
[331998388,1720929086168,-151.0,0.00013753,2]
[331998389,1720929086177,-500.0,0.00013753,2]
[331998390,1720929086186,-500.0,0.00013753,2]
[331998391,1720929086195,-500.0,0.00013753,2]
[331998392,1720929086205,-223.88734,0.00013753,2]
[331998393,1720929086214,-500.0,0.00013753,2]
[331998394,1720929086223,-500.0,0.00013753,2]
[331998395,1720929086232,-689.84,0.00013753,2]
[331998396,1720929086241,-500.0,0.00013753,2]
[331998397,1720929086252,-500.0,0.00013753,2]
[331998398,1720929086262,-500.0,0.00013753,2]
[331998399,1720929086271,-500.0,0.00013753,2]
[331998400,1720929086280,-500.0,0.00013753,2]
[331998401,1720929086289,-500.0,0.00013753,2]
[331998402,1720929086299,-500.0,0.00013753,2]
[331998403,1720929086308,-155302.0,0.00013753,2]
[331998404,1720929086318,-150.0,0.00013756,2]
[331998405,1720929086327,-150.0,0.00013761,2]
[331998406,1720929086337,-300.0,0.00013765,2]
[331998407,1720929086346,-150.0,0.00013765,2]
[331998408,1720929086354,-150.0,0.00013766,2]
[331998409,1720929086363,-150.0,0.00013767,2]
[331998410,1720929086372,-315.0,0.0001377,2]
[331998411,1720929086382,-150.0,0.00013788,2]
[331998412,1720929086391,-150.0,0.00013789,2]
[331998413,1720929086400,-1356.39,0.0001379,2]
[331998414,1720929086410,-151.0,0.0001379,2]
[331998415,1720929086419,-151.0,0.0001379,2]
[331998416,1720929086428,-163.76,0.0001379,2]
[331998417,1720929086438,-163.76,0.0001379,2]
[331998418,1720929086447,-247.736588,0.0001379,2]
[331998419,1720929086456,-247.736588,0.0001379,2]
[331998420,1720929086465,-151.0,0.0001379,2]
[331998421,1720929086474,-151.0,0.0001379,2]
[331998422,1720929086483,-151.0,0.0001379,2]
[331998423,1720929086492,-151.0,0.0001379,2]
[331998424,1720929086501,-151.0,0.0001379,2]
[331998425,1720929086510,-151.0,0.0001379,2]
[331998426,1720929086519,-956.774465,0.0001379,2]
[331998427,1720929086528,-956.774465,0.0001379,2]
[331998428,1720929086538,-821.90283923,0.0001379,2]
[331998429,1720929086547,-821.90283916,0.0001379,2]
[331998430,1720929086556,-821.90283916,0.0001379,2]
[331998431,1720929086565,-821.90283916,0.0001379,2]
[331998432,1720929086574,-500.0,0.0001379,2]
[331998433,1720929086583,-821.90283916,0.0001379,2]
[331998434,1720929086592,-821.90283916,0.0001379,2]
[331998435,1720929086601,-821.90283916,0.0001379,2]
[331998436,1720929086610,-821.90283916,0.0001379,2]
[331998437,1720929086620,-821.90283916,0.0001379,2]
[331998438,1720929086629,-821.90283916,0.0001379,2]
[331998439,1720929086638,-10000.0,0.0001379,2]
[331998440,1720929086648,-151.0,0.0001379,2]
[331998441,1720929086658,-10000.0,0.0001379,2]
[331998442,1720929086667,-10000.0,0.0001379,2]
[331998443,1720929086676,-10000.0,0.0001379,2]
[331998444,1720929086686,-10000.0,0.0001379,2]
[331998445,1720929086695,-10000.0,0.0001379,2]
[331998446,1720929086704,-683.864752,0.0001379,2]
[331998447,1720929086714,-683.864752,0.0001379,2]
[331998448,1720929086723,-185.915744,0.0001379,2]
[331998449,1720929086732,-185.915744,0.0001379,2]
[331998450,1720929086742,-151.0,0.00013791,2]
[331998451,1720929086751,-151.0,0.00013791,2]
[331998452,1720929086760,-1697.221291,0.00013791,2]
[331998453,1720929086770,-1697.221291,0.00013791,2]
[331998454,1720929086779,-339.75,0.00013791,2]
[331998455,1720929086788,-339.75,0.00013791,2]
[331998456,1720929086797,-151.0,0.00013791,2]
[331998457,1720929086806,-151.0,0.00013791,2]
[331998458,1720929086815,-234.634639,0.00013791,2]
[331998459,1720929086824,-151.0,0.00013791,2]
[331998460,1720929086833,-234.634639,0.00013791,2]
[331998461,1720929086842,-833.2497148,0.00013791,2]
[331998462,1720929086851,-710.8138705,0.00013791,2]
[331998463,1720929086859,-270.9108667,0.00013791,2]
[331998464,1720929086869,-270.9108667,0.00013791,2]
[331998465,1720929086880,-534.473365,0.00013791,2]
[331998466,1720929086889,-16554.5483932,0.00013791,2]
[331998467,1720929086898,-534.473365,0.00013791,2]
[331998468,1720929086907,-151.0,0.00013791,2]
[331998469,1720929086918,-151.0,0.00013791,2]
[331998470,1720929086927,-175.562276,0.00013791,2]
[331998471,1720929086937,-175.562276,0.00013791,2]
[331998472,1720929086948,-161.234922,0.00013791,2]
[331998473,1720929086957,-161.234922,0.00013791,2]
[331998474,1720929086966,-2035.6257346,0.00013791,2]
[331998475,1720929086976,-1212.4987226,0.00013791,2]
[331998476,1720929086985,-3024.7278708,0.00013791,2]
[331998477,1720929086995,-1546.18,0.00013798,2]
[331998478,1720929087004,-521.95,0.00013798,2]
[331998479,1720929087013,-500.0,0.00013798,2]
[331998480,1720929087022,-500.0,0.00013798,2]
[331998481,1720929087031,-1102.28,0.00013798,2]
[331998482,1720929087041,-1356.39,0.00013798,2]
[331998483,1720929087050,-606.03,0.00013798,2]
[331998484,1720929087059,-7476.84,0.00013798,2]
[331998485,1720929087068,-4980.81,0.00013798,2]
[331998486,1720929087077,-1938.22,0.00013798,2]
[331998487,1720929087086,-1767.91,0.00013798,2]
[331998488,1720929087095,-1309.31,0.00013798,2]
[331998489,1720929087104,-1309.31,0.00013798,2]
[331998490,1720929087113,-500.0,0.00013799,2]
[331998491,1720929087122,-500.0,0.00013799,2]
[331998492,1720929087132,-500.0,0.00013799,2]
[331998493,1720929087143,-500.0,0.00013799,2]
[331998494,1720929087154,-500.0,0.00013799,2]
[331998495,1720929087163,-500.0,0.00013799,2]
[331998496,1720929087174,-500.0,0.00013799,2]
[331998497,1720929087184,-500.0,0.00013799,2]
[331998498,1720929087193,-500.0,0.00013799,2]
[331998499,1720929087204,-500.0,0.00013799,2]
[331998500,1720929087214,-500.0,0.00013799,2]
[331998501,1720929087225,-364.07928255,0.00013799,2]
[331998502,1720929087236,-1546.18,0.00013799,2]
[331998503,1720929087245,-1546.18,0.00013799,2]
[331998504,1720929087255,-1546.18,0.00013799,2]
[331998505,1720929087265,-1546.18,0.00013799,2]
[331998506,1720929087276,-1546.18,0.00013799,2]
[331998507,1720929087286,-1546.18,0.00013799,2]
[331998508,1720929087296,-1546.18,0.00013799,2]
[331998509,1720929087307,-1546.18,0.00013799,2]
[331998510,1720929087317,-1546.18,0.00013799,2]
[331998511,1720929087327,-1546.18,0.00013799,2]
[331998512,1720929087337,-1546.34641455,0.00013799,2]
[331998513,1720929087347,-521.95,0.00013799,2]
[331998514,1720929087358,-521.95,0.00013799,2]
[331998515,1720929087367,-521.95,0.00013799,2]
[331998516,1720929087376,-521.95,0.00013799,2]
[331998517,1720929087387,-521.95,0.00013799,2]
[331998518,1720929087397,-521.95,0.00013799,2]
[331998519,1720929087407,-521.95,0.00013799,2]
[331998520,1720929087416,-521.95,0.00013799,2]
[331998521,1720929087427,-521.95,0.00013799,2]
[331998522,1720929087437,-521.95,0.00013799,2]
[331998523,1720929087448,-522.18431075,0.00013799,2]
[331998524,1720929087460,-151.0,0.00013799,2]
[331998525,1720929087469,-500.0,0.00013799,2]
[331998526,1720929087478,-500.0,0.00013799,2]
[331998527,1720929087488,-523.21433166,0.00013799,2]
[331998528,1720929087497,-151.0,0.00013799,2]
[331998529,1720929087508,-500.0,0.00013799,2]
[331998530,1720929087518,-500.0,0.00013799,2]
[331998531,1720929087527,-500.0,0.00013799,2]
[331998532,1720929087537,-500.0,0.00013799,2]
[331998533,1720929087546,-500.0,0.00013799,2]
[331998534,1720929087555,-500.0,0.00013799,2]
[331998535,1720929087565,-500.0,0.00013799,2]
[331998536,1720929087576,-500.0,0.00013799,2]
[331998537,1720929087586,-500.0,0.00013799,2]
[331998538,1720929087597,-324.63671787,0.00013799,2]
[331998539,1720929087606,-500.0,0.00013799,2]
[331998540,1720929087616,-500.0,0.00013799,2]
[331998541,1720929087628,-500.0,0.00013799,2]
[331998542,1720929087638,-500.0,0.00013799,2]
[331998543,1720929087648,-500.0,0.00013799,2]
[331998544,1720929087657,-500.0,0.00013799,2]
[331998545,1720929087666,-500.0,0.00013799,2]
[331998546,1720929087675,-500.0,0.00013799,2]
[331998547,1720929087684,-568.43746521,0.00013799,2]
[331998548,1720929087693,-1102.28,0.00013799,2]
[331998549,1720929087702,-1102.28,0.00013799,2]
[331998550,1720929087712,-1102.28,0.00013799,2]
[331998551,1720929087723,-1102.28,0.00013799,2]
[331998552,1720929087735,-1102.28,0.00013799,2]
[331998553,1720929087744,-1102.28,0.00013799,2]
[331998554,1720929087753,-1102.28,0.00013799,2]
[331998555,1720929087762,-1102.28,0.00013799,2]
[331998556,1720929087771,-1102.28,0.00013799,2]
[331998557,1720929087780,-1102.28,0.00013799,2]
[331998558,1720929087789,-1102.4219118,0.00013799,2]
[331998559,1720929087800,-1356.39,0.00013799,2]
[331998560,1720929087810,-1356.39,0.00013799,2]
[331998561,1720929087820,-1356.39,0.00013799,2]
[331998562,1720929087830,-1356.39,0.00013799,2]
[331998563,1720929087840,-1356.39,0.00013799,2]
[331998564,1720929087852,-1356.39,0.00013799,2]
[331998565,1720929087862,-1356.39,0.00013799,2]
[331998566,1720929087875,-1356.48826894,0.00013799,2]
[331998567,1720929087885,-185.328613,0.00013799,2]
[331998568,1720929087895,-185.328613,0.00013799,2]
[331998569,1720929087905,-151.0,0.00013799,2]
[331998570,1720929087916,-151.0,0.00013799,2]
[331998571,1720929087926,-220.082618,0.00013799,2]
[331998572,1720929087935,-151.0,0.00013799,2]
[331998573,1720929087946,-220.082618,0.00013799,2]
[331998574,1720929087958,-606.03,0.00013799,2]
[331998575,1720929087968,-606.03,0.00013799,2]
[331998576,1720929087978,-606.03,0.00013799,2]
[331998577,1720929087987,-606.03,0.00013799,2]
[331998578,1720929087997,-606.03,0.00013799,2]
[331998579,1720929088006,-606.03,0.00013799,2]
[331998580,1720929088015,-606.03,0.00013799,2]
[331998581,1720929088024,-606.09303018,0.00013799,2]
[331998582,1720929088034,-500.0,0.00013799,2]
[331998583,1720929088046,-500.0,0.00013799,2]
[331998584,1720929088056,-500.0,0.00013799,2]
[331998585,1720929088066,-500.0,0.00013799,2]
[331998586,1720929088076,-500.0,0.00013799,2]
[331998587,1720929088085,-500.0,0.00013799,2]
[331998588,1720929088094,-500.0,0.00013799,2]
[331998589,1720929088103,-500.0,0.00013799,2]
[331998590,1720929088112,-500.0,0.00013799,2]
[331998591,1720929088124,-500.0,0.00013799,2]
[331998592,1720929088134,-151.0,0.00013799,2]
[331998593,1720929088143,-152.738335,0.00013799,2]
[331998594,1720929088154,-152.738335,0.00013799,2]
[331998595,1720929088165,-7476.84,0.00013799,2]
[331998596,1720929088174,-7476.84,0.00013799,2]
[331998597,1720929088186,-7476.84,0.00013799,2]
[331998598,1720929088196,-7476.84,0.00013799,2]
[331998599,1720929088207,-7476.84,0.00013799,2]
[331998600,1720929088217,-7476.84,0.00013799,2]
[331998601,1720929088226,-7476.84,0.00013799,2]
[331998602,1720929088237,-7477.03054491,0.00013799,2]
[331998603,1720929088246,-151.0,0.00013799,2]
[331998604,1720929088256,-458.449784,0.00013799,2]
[331998605,1720929088265,-458.449784,0.00013799,2]
[331998606,1720929088274,-1136.416145,0.00013799,2]
[331998607,1720929088283,-1136.416145,0.00013799,2]
[331998608,1720929088292,-4980.81,0.00013799,2]
[331998609,1720929088301,-4980.81,0.00013799,2]
[331998610,1720929088310,-4980.81,0.00013799,2]
[331998611,1720929088319,-4980.81,0.00013799,2]
[331998612,1720929088328,-4980.81,0.00013799,2]
[331998613,1720929088337,-4980.81,0.00013799,2]
[331998614,1720929088503,-4980.81,0.00013799,2]
[331998615,1720929088513,-4980.81,0.00013799,2]
[331998616,1720929088523,-4980.81,0.00013799,2]
[331998617,1720929088531,-4980.81,0.00013799,2]
[331998618,1720929088540,-4980.85071741,0.00013799,2]
[331998619,1720929088550,-1938.22,0.00013799,2]
[331998620,1720929088559,-1938.22,0.00013799,2]
[331998621,1720929088568,-1938.22,0.00013799,2]
[331998622,1720929088577,-1938.22,0.00013799,2]
[331998623,1720929088586,-1938.22,0.00013799,2]
[331998624,1720929088595,-1938.22,0.00013799,2]
[331998625,1720929088604,-1938.22,0.00013799,2]
[331998626,1720929088613,-1938.22,0.00013799,2]
[331998627,1720929088622,-1938.22,0.00013799,2]
[331998628,1720929088631,-1938.22,0.00013799,2]
[331998629,1720929088641,-1938.44910514,0.00013799,2]
[331998630,1720929088650,-605.82068202,0.00013799,2]
[331998631,1720929088659,-605.82068197,0.00013799,2]
[331998632,1720929088668,-605.82068197,0.00013799,2]
[331998633,1720929088677,-605.82068197,0.00013799,2]
[331998634,1720929088686,-605.82068197,0.00013799,2]
[331998635,1720929088695,-1767.91,0.00013799,2]
[331998636,1720929088705,-1767.91,0.00013799,2]
[331998637,1720929088714,-1767.91,0.00013799,2]
[331998638,1720929088724,-1767.91,0.00013799,2]
[331998639,1720929088733,-1767.91,0.00013799,2]
[331998640,1720929088743,-605.82068197,0.00013799,2]
[331998641,1720929088752,-1767.91,0.00013799,2]
[331998642,1720929088762,-1767.91,0.00013799,2]
[331998643,1720929088771,-1768.04629198,0.00013799,2]
[331998644,1720929088780,-605.82068197,0.00013799,2]
[331998645,1720929088790,-605.82068197,0.00013799,2]
[331998646,1720929088799,-605.82068197,0.00013799,2]
[331998647,1720929088809,-605.82068197,0.00013799,2]
[331998648,1720929088818,-151.0,0.00013799,2]
[331998649,1720929088828,-1309.31,0.00013799,2]
[331998650,1720929088837,-1309.31,0.00013799,2]
[331998651,1720929088846,-1309.31,0.00013799,2]
[331998652,1720929088856,-1309.31,0.00013799,2]
[331998653,1720929088865,-1309.31,0.00013799,2]
[331998654,1720929088879,-1309.31,0.00013799,2]
[331998655,1720929088888,-1309.42019677,0.00013799,2]
[331998656,1720929088897,-151.0,0.00013799,2]
[331998657,1720929088906,-334482.92535816,0.000138,2]
[331998658,1720929088915,-6896709.9076563,0.000138,2]
[331998659,1720929089703,-1588.71925122,0.000138,2]
[331998660,1720929089727,-500.0,0.00013698,2]
[331998661,1720929089736,-268.24470594,0.00013698,2]
[331998662,1720929089748,-231.75529406,0.00013698,2]
[331998663,1720929089757,-47780.49470594,0.000138,2]
[331998664,1720929092946,-198.888,0.00011506,2]
[331998665,1720929092957,-1006.85157083,0.00013424,2]
[331998666,1720929092966,-695.20453873,0.00013676,2]
[331998667,1720929092976,-1525.59,0.00013698,2]
[331998668,1720929092985,-500.0,0.00013698,2]
[331998669,1720929092994,-500.0,0.00013698,2]
[331998670,1720929093003,-500.0,0.00013698,2]
[331998671,1720929093012,-250.64901156,0.00013698,2]
[331998672,1720929399496,154.27182769,0.0002492,60]
[331998673,1720929461040,386.0,0.00025,60]
[331998674,1720929464964,154.27182769,0.00024135,60]
[331998730,1720930238673,-343.85707999,9.7e-05,2]
[331998878,1720930240269,-645.93668999,9.7e-05,2]
[331998881,1720930240285,-3534.26673002,9.7e-05,2]
[331998883,1720930240298,-405.34,0.00010301,2]
[331998885,1720930240312,-500.0,0.00011012,2]
[331998888,1720930240324,-500.0,0.00011012,2]
[331998890,1720930240337,-543.85707999,0.00011012,2]
[331998892,1720930240349,-300.0,0.00011056,2]
[331998894,1720930240360,-658.04585548,0.00011057,2]
[331998896,1720930240372,-11004.34158491,0.00011199,2]
[331998898,1720930240384,-371.43263778,0.00011199,2]
[331998900,1720930240397,-205.792,0.00011506,2]
[331998903,1720930240409,-193.746,0.00011506,2]
[331998905,1720930240421,-150.0,0.00011506,2]
[331998907,1720930240432,-543.47,0.0001161,2]
[331998909,1720930240445,-166.918,0.0001161,2]
[331998912,1720930240460,-614.914,0.0001161,2]
[331998914,1720930240474,-17330.481,0.0001161,2]
[331998916,1720930240488,-616.304,0.0001161,2]
[331998918,1720930240500,-420.0,0.00012149,2]
[331998920,1720930240513,-250.0,0.00012157,2]
[331998922,1720930240526,-183.68,0.00012306,2]
[331998925,1720930240538,-1909.85,0.00012338,2]
[331998927,1720930240549,-168.64,0.00012384,2]
[331998929,1720930240561,-162.33,0.00012388,2]
[331998931,1720930240574,-250.0,0.00012402,2]
[331998934,1720930240587,-1000.0,0.00012459,2]
[331998936,1720930240599,-405.34,0.00012564,2]
[331998938,1720930240612,-500.0,0.00012656,2]
[331998940,1720930240625,-500.0,0.00012656,2]
[331998943,1720930240640,-300.0,0.00012928,2]
[331998945,1720930240652,-420.63,0.00012928,2]
[331998947,1720930240664,-150.0,0.00012928,2]
[331998949,1720930240676,-150.0,0.00012928,2]
[331998951,1720930240687,-300.93,0.00012996,2]
[331998954,1720930240699,-171.6,0.00013,2]
[331998956,1720930240709,-36741.2111118,0.00013138,6]
[331998960,1720930240744,-46849.94318308,0.00013138,6]
[331998962,1720930240756,-15127.46485159,0.00013138,6]
[331998965,1720930240767,-1163.0,0.00013138,6]
[331998967,1720930240784,-658.090015,0.00013138,6]
[331998969,1720930240796,-174354.71083853,0.00013138,6]
[331998971,1720930240806,-247.568656,0.00013219,2]
[331998973,1720930240815,-376.485871,0.00013219,2]
[331998975,1720930240824,-466.265308,0.00013219,2]
[331998977,1720930240833,-369.463067,0.00013219,2]
[331999023,1720930241264,-289.062407,0.00013219,2]
[331999027,1720930241297,-170.224364,0.00013219,2]
[331999030,1720930241320,-159.889629,0.00013219,2]
[331999032,1720930241331,-707.249538,0.00013219,2]
[331999034,1720930241341,-477.023841,0.00013219,2]
[331999035,1720930241351,-195.895831,0.00013219,2]
[331999036,1720930241362,-155.90394,0.00013219,2]
[331999037,1720930241372,-587.0,0.00013349,2]
[331999038,1720930241382,-247.568656,0.00013384,2]
[331999039,1720930241392,-376.485871,0.00013384,2]
[331999040,1720930241402,-466.265308,0.00013384,2]
[331999041,1720930241412,-369.463067,0.00013384,2]
[331999042,1720930241422,-289.062407,0.00013384,2]
[331999043,1720930241431,-707.249538,0.00013384,2]
[331999044,1720930241440,-477.023841,0.00013384,2]
[331999046,1720930241450,-300.79,0.00013452,2]
[331999048,1720930241460,-5474.96351443,0.00013472,2]
[331999050,1720930241469,-1276.78570776,0.00013478,2]
[331999052,1720930241478,-342.18189299,0.00013488,2]
[331999054,1720930241487,-529.42495202,0.00013516,2]
[331999056,1720930241497,-247.568656,0.00013549,2]
[331999058,1720930241507,-376.485871,0.00013549,2]
[331999060,1720930241517,-466.265308,0.00013549,2]
[331999062,1720930241525,-369.463067,0.00013549,2]
[331999064,1720930241535,-289.062407,0.00013549,2]
[331999066,1720930241545,-707.249538,0.00013549,2]
[331999068,1720930241554,-477.023841,0.00013549,2]
[331999070,1720930241563,-218.42540228,0.00013598,2]
[331999072,1720930241573,-1000.0,0.00013598,2]
[331999074,1720930241582,-7500.0,0.00013598,2]
[331999076,1720930241591,-218.42540222,0.00013613,2]
[331999078,1720930241600,-362.03641308,0.0001362,2]
[331999080,1720930241610,-218.42540222,0.00013627,2]
[331999082,1720930241620,-362.03641308,0.00013641,2]
[331999084,1720930241630,-218.42540222,0.00013642,2]
[331999086,1720930241639,-218.42540222,0.00013656,2]
[331999088,1720930241648,-362.03641308,0.00013663,2]
[331999090,1720930241658,-218.42540222,0.00013671,2]
[331999091,1720930241667,-362.03641308,0.00013684,2]
[331999093,1720930241677,-218.42540222,0.00013685,2]
[331999095,1720930241686,-500.0,0.0001369,2]
[331999097,1720930241695,-500.0,0.00013698,2]
[331999099,1720930241708,-500.0,0.00013698,2]
[331999101,1720930241717,-500.0,0.00013698,2]
[331999104,1720930241726,-500.0,0.00013698,2]
[331999105,1720930241735,-500.0,0.00013698,2]
[331999107,1720930241744,-500.0,0.00013698,2]
[331999109,1720930241754,-500.0,0.00013698,2]
[331999111,1720930241763,-500.0,0.00013698,2]
[331999113,1720930241773,-500.0,0.00013698,2]
[331999115,1720930241782,-191.45360669,0.00013698,2]
[331999117,1720930241791,-500.0,0.00013698,2]
[331999119,1720930241801,-500.0,0.00013698,2]
[331999121,1720930241810,-500.0,0.00013698,2]